bitfinex/quotes_SOLUSD_20260213
["timestamp","ask_amount","ask_price","bid_price","bid_amount"]
[1770962298391,4.27793694,78.52,78.505,0.48374263]
[1770962300789,0.46888253,78.523,78.505,0.48374263]
[1770962300993,0.46888253,78.529,78.507,0.48374263]
[1770962301287,0.46888253,78.519,78.502,12.73841599]
[1770962301587,0.46888253,78.509,78.481,12.74193753]
[1770962301784,4.27793694,78.49,78.481,12.74193753]
[1770962303690,4.27793694,78.49,78.48,0.2]
[1770962304283,4.74681947,78.49,78.48,0.2]
[1770962306194,0.46888253,78.489,78.48,0.2]
[1770962307397,13.20952134,78.489,78.462,13.22870485]
[1770962307600,4.27793694,78.48,78.463,0.48374263]
[1770962308406,0.46888253,78.479,78.463,0.48374263]
[1770962308584,0.46888253,78.479,78.458,0.48374263]
[1770962311700,4.27793694,78.47,78.458,0.48374263]
[1770962312001,0.45661693,78.469,78.449,0.4817154]
[1770962313105,4.27793694,78.47,78.451,0.4817154]
[1770962314296,4.27793694,78.47,78.453,0.48398654]
[1770962314498,0.45612732,78.469,78.453,0.48398654]
[1770962314802,4.27793694,78.47,78.446,0.48398654]
[1770962315414,0.45612732,78.469,78.446,0.48398654]
[1770962315903,0.45612732,78.469,78.43,4.27793694]
[1770962315904,0.45612732,78.459,78.431,0.48398654]
[1770962316107,4.27793694,78.44,78.424,0.48398654]
[1770962317208,4.27793694,78.44,78.425,13.23502256]
[1770962317515,4.27793694,78.44,78.412,31.88263259]
[1770962317516,4.27793694,78.44,78.421,0.48398654]
[1770962319311,4.27793694,78.44,78.423,0.48398654]
[1770962320617,0.45612732,78.429,78.413,0.48398654]
[1770962320800,4.27793694,78.43,78.413,0.48398654]
[1770962321309,4.27793694,78.43,78.414,12.75282475]
[1770962321508,4.27793694,78.43,78.415,0.48398654]
[1770962321808,4.27793694,78.43,78.411,0.48398654]
[1770962321809,0.45612732,78.429,78.411,0.48398654]
[1770962322014,4.27793694,78.42,78.41,0.2]
[1770962322214,0.45612732,78.429,78.41,0.2]
[1770962322411,4.27793694,78.42,78.41,0.2]
[1770962322796,0.45612732,78.429,78.41,0.2]
[1770962323001,4.27793694,78.43,78.412,0.48398654]
[1770962323419,0.45612732,78.437,78.414,0.48398654]
[1770962323615,4.27793694,78.44,78.414,0.48398654]
[1770962323816,4.73406426,78.44,78.414,0.48398654]
[1770962324012,0.45612732,78.439,78.414,0.48398654]
[1770962326525,0.45612732,78.438,78.414,0.48398654]
[1770962328613,4.27793694,78.43,78.414,0.48398654]
[1770962328927,0.45612732,78.449,78.416,0.41448975]
[1770962329918,41.6,78.456,78.418,0.41519305]
[1770962329919,0.45612732,78.439,78.418,0.41519305]
[1770962330611,0.45612732,78.446,78.421,0.41589156]
[1770962330924,4.27793694,78.45,78.421,0.41589156]
[1770962331128,4.73406426,78.45,78.421,0.41589156]
[1770962331325,0.45612732,78.449,78.421,0.41589156]
[1770962334319,0.45612732,78.449,78.423,0.41794369]
[1770962336916,0.45612732,78.449,78.422,12.7515238]
[1770962337322,0.45612732,78.449,78.423,0.41991846]
[1770962337816,0.45612732,78.448,78.418,12.75206976]
[1770962338016,0.45612732,78.448,78.419,0.42056446]
[1770962338217,4.27793694,78.44,78.419,0.42056446]
[1770962338417,4.73406426,78.44,78.419,0.42056446]
[1770962339035,0.45612732,78.44,78.419,0.42056446]
[1770962339240,0.45612732,78.44,78.413,0.42120121]
[1770962340139,0.45612732,78.439,78.413,0.42120121]
[1770962340527,0.45612732,78.439,78.415,0.42306799]
[1770962340838,0.45612732,78.439,78.414,12.75282475]
[1770962341017,12.74834469,78.442,78.414,12.75282475]
[1770962341018,4.74818393,78.43,78.414,12.75282475]
[1770962341219,0.45694267,78.429,78.414,12.75282475]
[1770962342642,0.45694267,78.439,78.415,0.42427761]
[1770962343532,0.45694267,78.439,78.414,12.75282475]
[1770962350541,0.45694267,78.438,78.414,12.75282475]
[1770962351144,0.45694267,78.438,78.414,13.18170884]
[1770962351346,0.45694267,78.438,78.415,0.42888409]
[1770962353332,0.45694267,78.438,78.417,0.42996043]
[1770962355742,0.45694267,78.438,78.413,0.43153243]
[1770962357229,0.45694267,78.438,78.415,0.43203987]
[1770962357847,0.45694267,78.437,78.411,0.43255466]
[1770962358048,0.45694267,78.437,78.411,13.18586733]
[1770962358236,0.45694267,78.437,78.412,0.43255466]
[1770962358743,4.29124126,78.43,78.411,12.75331267]
[1770962358949,0.45694267,78.429,78.411,12.75331267]
[1770962360147,0.45694267,78.429,78.41,0.2]
[1770962361138,0.45694267,78.419,78.41,0.2]
[1770962362548,0.45694267,78.419,78.4,0.2]
[1770962362749,0.45694267,78.419,78.4,0.63501053]
[1770962363335,0.45694267,78.419,78.401,0.43501053]
[1770962363649,0.45694267,78.419,78.4,0.2]
[1770962365059,0.45694267,78.412,78.4,0.2]
[1770962365554,0.45694267,78.412,78.382,53.98]
[1770962365555,0.45694267,78.412,78.387,0.43595764]
[1770962365736,0.45694267,78.412,78.391,0.43643016]
[1770962366758,4.29124126,78.41,78.391,0.43643016]
[1770962366958,4.29124126,78.41,78.386,0.43688501]
[1770962367660,4.29124126,78.41,78.381,0.43688501]
[1770962367855,4.29124126,78.41,78.381,13.19507896]
[1770962368039,4.29124126,78.41,78.382,0.43733621]
[1770962369143,0.45694267,78.412,78.382,0.43779075]
[1770962369653,0.45694267,78.409,78.382,0.43779075]
[1770962369837,4.61729252,78.434,78.382,0.43779075]
[1770962369838,0.45694267,78.414,78.382,0.43779075]
[1770962370640,0.46793222,78.409,78.382,0.43779075]
[1770962371059,0.46793222,78.409,78.384,0.43910517]
[1770962373269,0.46793222,78.409,78.383,12.75786841]
[1770962373468,0.46793222,78.409,78.384,0.43995178]
[1770962374466,0.47134747,78.389,78.357,0.44078187]
[1770962374761,0.47134747,78.389,78.361,0.44118869]
[1770962374965,0.47134747,78.399,78.361,0.44118869]
[1770962375487,0.47134747,78.389,78.363,0.44118869]
[1770962377366,0.47134747,78.389,78.365,0.44199567]
[1770962378967,0.47134747,78.399,78.365,0.44199567]
[1770962379156,0.47134747,78.399,78.371,0.44278046]
[1770962379467,0.47134747,78.398,78.372,0.44278046]
[1770962380670,0.47134747,78.398,78.374,0.44316207]
[1770962382251,4.76258873,78.39,78.374,0.44316207]
[1770962382452,0.47134747,78.389,78.368,0.44391009]
[1770962384873,4.29124126,78.39,78.37,0.44499436]
[1770962385466,0.47134747,78.394,78.37,0.44499436]
[1770962386472,0.47134747,78.404,78.381,0.44534985]
[1770962387261,0.47134747,78.414,78.381,0.44534985]
[1770962387577,0.47134747,78.409,78.381,0.44534985]
[1770962389281,0.47134747,78.409,78.383,0.44640612]
[1770962390262,0.47134747,78.409,78.384,12.75770565]
[1770962390463,0.47134747,78.409,78.385,0.44674207]
[1770962391254,0.47134747,78.409,78.386,12.75738014]
[1770962391459,0.47134747,78.409,78.387,0.44707696]
[1770962392566,0.47134747,78.409,78.386,12.75738014]
[1770962392778,0.47134747,78.409,78.389,0.44774537]
[1770962393357,0.47134747,78.409,78.388,12.75705465]
[1770962393874,0.47134747,78.409,78.388,13.20512247]
[1770962394267,0.47134747,78.409,78.383,0.44806782]
[1770962397185,0.47134747,78.409,78.385,0.44901143]
[1770962399170,0.47134747,78.399,78.374,0.44962421]
[1770962400470,0.47134747,78.399,78.376,0.45021839]
[1770962401372,0.49863025,78.409,78.381,0.45050768]
[1770962401580,4.29124126,78.43,78.391,0.50484304]
[1770962401771,4.29124126,78.42,78.391,0.50484304]
[1770962401980,4.29124126,78.4,78.381,53.98]
[1770962402188,4.29124126,78.4,78.376,0.50484304]
[1770962402565,4.29124126,78.4,78.378,0.50484304]
[1770962403006,4.29486446,78.42,78.381,0.50484304]
[1770962403287,4.29486446,78.43,78.401,0.50484304]
[1770962403481,0.49863025,78.429,78.401,0.50484304]
[1770962405176,0.49863025,78.429,78.403,0.50484304]
[1770962406004,0.49863025,78.435,78.403,0.50484304]
[1770962406298,0.49863025,78.429,78.403,0.50484304]
[1770962406677,0.49863025,78.429,78.411,0.50484304]
[1770962406878,0.49863025,78.429,78.403,0.50484304]
[1770962407284,0.49863025,78.429,78.405,0.50484304]
[1770962409902,0.49863025,78.429,78.407,0.50484304]
[1770962410892,0.49863025,78.429,78.408,13.25864367]
[1770962411095,0.49863025,78.429,78.409,0.50484304]
[1770962412295,0.49863025,78.429,78.411,0.50484304]
[1770962413095,0.49863025,78.439,78.413,0.50484304]
[1770962414601,0.49863025,78.429,78.404,0.50484304]
[1770962415307,12.74876018,78.439,78.411,0.50484304]
[1770962415489,0.49863025,78.429,78.411,0.50484304]
[1770962416687,0.49863025,78.429,78.413,0.50484304]
[1770962419488,0.49863025,78.429,78.407,0.50484304]
[1770962420101,31.86866361,78.447,78.401,44.64228772]
[1770962420102,0.49863025,78.427,78.402,0.50484304]
[1770962420294,0.49863025,78.427,78.401,12.75493935]
[1770962420512,0.49863025,78.419,78.396,67.30043908]
[1770962420809,0.49863025,78.419,78.397,0.50484304]
[1770962422209,0.49863025,78.419,78.398,13.26027047]
[1770962424199,0.49863025,78.419,78.4,12.75510204]
[1770962425098,0.49863025,78.419,78.401,0.50484304]
[1770962425494,0.49863025,78.419,78.403,0.50484304]
[1770962425789,0.49863025,78.427,78.403,0.50484304]
[1770962426900,0.49863025,78.433,78.411,0.50484304]
[1770962427607,4.29486446,78.43,78.411,0.50484304]
[1770962427814,0.49863025,78.429,78.406,0.50484304]
[1770962428216,0.49863025,78.429,78.411,0.50484304]
[1770962429197,0.49863025,78.434,78.413,0.50484304]
[1770962431016,0.50455914,78.439,78.415,0.49922246]
[1770962431223,0.50455914,78.449,78.421,0.49922246]
[1770962432203,0.50455914,78.429,78.414,12.75282475]
[1770962432900,0.50455914,78.439,78.415,0.49922246]
[1770962433903,0.50455914,78.439,78.41,13.2526604]
[1770962434113,0.50455914,78.439,78.411,0.49922246]
[1770962435221,0.50455914,78.439,78.412,13.23401451]
[1770962435401,0.50455914,78.439,78.413,0.48086449]
[1770962436306,0.48765672,78.429,78.402,12.75466077]
[1770962436623,0.48765672,78.429,78.398,54.06]
[1770962436822,4.29486446,78.42,78.398,54.06]
[1770962437009,0.48765672,78.419,78.398,54.06]
[1770962437513,0.48765672,78.424,78.401,0.48086449]
[1770962438022,4.78252118,78.44,78.411,0.48086449]
[1770962438228,0.48765672,78.439,78.411,0.48086449]
[1770962439320,0.48765672,78.439,78.412,0.48086449]
[1770962441129,0.48765672,78.439,78.414,0.48086449]
[1770962443226,4.29486446,78.44,78.414,0.48086449]
[1770962443227,0.48765672,78.437,78.414,0.48086449]
[1770962444236,0.48765672,78.437,78.415,12.75266211]
[1770962444616,0.48765672,78.437,78.413,0.48086449]
[1770962444813,0.48765672,78.437,78.414,12.75282475]
[1770962445017,0.48765672,78.437,78.414,13.23368924]
[1770962445724,0.48765672,78.437,78.415,0.48086449]
[1770962446708,0.48765672,78.429,78.401,54.16]
[1770962446911,0.48765672,78.429,78.403,0.48086449]
[1770962447208,0.48765672,78.419,78.401,54.16]
[1770962447533,0.48765672,78.419,78.394,12.75607827]
[1770962447714,0.48765672,78.419,78.395,0.48086449]
[1770962449109,0.48765672,78.419,78.397,0.48086449]
[1770962449337,0.48765672,78.429,78.401,0.48086449]
[1770962449515,0.48765672,78.419,78.393,0.48086449]
[1770962450033,0.48765672,78.419,78.395,0.48086449]
[1770962451538,0.48765672,78.424,78.401,0.48086449]
[1770962451736,0.48765672,78.419,78.396,13.23661733]
[1770962451923,0.48765672,78.419,78.396,12.75575284]
[1770962452736,0.48765672,78.409,78.384,54.18]
[1770962453046,0.48765672,78.399,78.372,0.48086449]
[1770962453339,4.29486446,78.42,78.361,0.48086449]
[1770962453340,0.48765672,78.388,78.361,0.48086449]
[1770962453544,0.48765672,78.388,78.363,0.48086449]
[1770962455736,0.48765672,78.379,78.358,0.48086449]
[1770962456052,0.48765672,78.389,78.361,0.48086449]
[1770962457723,0.48765672,78.399,78.371,0.48086449]
[1770962459240,36.1746259,78.42,78.381,0.48086449]
[1770962459241,0.48765672,78.404,78.381,0.48086449]
[1770962459716,0.48765672,78.404,78.383,0.48086449]
[1770962460828,0.51768321,78.409,78.383,0.48086449]
[1770962461150,41.74,78.426,78.391,0.53180717]
[1770962461151,0.51768321,78.415,78.391,0.53180717]
[1770962461320,0.51768321,78.419,78.391,0.53180717]
[1770962462152,0.51768321,78.429,78.401,0.53180717]
[1770962463928,0.51768321,78.419,78.401,0.53180717]
[1770962464124,0.51768321,78.429,78.403,0.53180717]
[1770962465447,0.51768321,78.435,78.403,0.53180717]
[1770962466537,0.51768321,78.435,78.405,0.53180717]
[1770962467853,4.29202337,78.43,78.405,0.53180717]
[1770962469229,0.51768321,78.429,78.407,0.53180717]
[1770962470060,0.51768321,78.429,78.399,54.26]
[1770962470061,0.51768321,78.419,78.401,12.75492644]
[1770962470858,0.51768321,78.419,78.401,13.28673361]
[1770962471056,0.51768321,78.419,78.402,0.53180717]
[1770962472032,0.51768321,78.419,78.399,54.26]
[1770962472239,0.51768321,78.418,78.394,0.53180717]
[1770962473464,0.51768321,78.409,78.388,13.28877951]
[1770962474257,0.51768321,78.409,78.389,0.53180717]
[1770962474454,4.29202337,78.42,78.391,0.53180717]
[1770962474455,0.51768321,78.419,78.391,0.53180717]
[1770962475845,0.51768321,78.429,78.391,0.53180717]
[1770962476865,0.51768321,78.429,78.393,0.53180717]
[1770962477564,4.29202337,78.43,78.401,0.53180717]
[1770962477740,0.51768321,78.429,78.401,0.53180717]
[1770962479252,0.51768321,78.429,78.403,0.53180717]
[1770962479939,0.51768321,78.428,78.403,0.53180717]
[1770962480746,0.51768321,78.419,78.398,12.75531482]
[1770962480946,0.51768321,78.419,78.394,0.53180717]
[1770962481468,0.51768321,78.419,78.395,12.75591555]
[1770962485269,0.51768321,78.419,78.395,13.28772272]
[1770962485765,0.51768321,78.419,78.396,0.53180717]
[1770962486150,0.51768321,78.424,78.4,4.29202337]
[1770962486359,0.51768321,78.424,78.401,0.53180717]
[1770962487565,0.51768321,78.424,78.403,0.53180717]
[1770962489256,0.51768321,78.424,78.404,12.7544513]
[1770962489974,0.51768321,78.429,78.405,0.53180717]
[1770962491670,0.51768321,78.429,78.406,12.75412595]
[1770962492372,0.51768321,78.429,78.406,13.24756698]
[1770962492867,0.51768321,78.429,78.406,12.75412595]
[1770962493083,0.51768321,78.429,78.407,0.49344103]
[1770962500557,0.51768321,78.429,78.408,12.75380063]
[1770962500761,0.51768321,78.429,78.409,0.50371638]
[1770962504183,0.53425004,78.439,78.411,0.50371638]
[1770962504661,0.53425004,78.438,78.411,0.50371638]
[1770962506074,0.53425004,78.438,78.412,12.75315002]
[1770962506273,0.53425004,78.438,78.413,0.50371638]
[1770962508761,0.53425004,78.438,78.415,0.50371638]
[1770962514584,0.53425004,78.436,78.415,0.50371638]
[1770962519190,4.29202337,78.44,78.417,0.50371638]
[1770962519375,0.53425004,78.446,78.417,0.50371638]
[1770962519875,0.53425004,78.45,78.421,0.50371638]
[1770962520067,41.78,78.451,78.421,0.50371638]
[1770962520689,42.29938818,78.451,78.421,0.50371638]
[1770962520980,63.70947754,78.482,78.42,4.29202337]
[1770962520981,0.51938818,78.468,78.431,0.48140722]
[1770962521283,4.29202337,78.46,78.431,0.48140722]
[1770962521493,0.51938818,78.459,78.431,0.48140722]
[1770962521874,0.51938818,78.458,78.433,0.48140722]
[1770962526188,0.51938818,78.458,78.434,12.74957288]
[1770962526376,0.51938818,78.458,78.435,0.48140722]
[1770962527788,0.51938818,78.469,78.441,0.48140722]
[1770962528374,0.51938818,78.469,78.451,0.48140722]
[1770962530086,0.51938818,78.474,78.451,0.48140722]
[1770962530293,0.51938818,78.474,78.452,0.48140722]
[1770962535401,0.51938818,78.474,78.454,0.48140722]
[1770962535594,0.51938818,78.482,78.461,0.48140722]
[1770962536196,12.74081441,78.488,78.461,0.48140722]
[1770962536501,0.51938818,78.487,78.461,0.48140722]
[1770962538000,0.51938818,78.487,78.462,12.74502306]
[1770962538193,0.51938818,78.487,78.463,0.48140722]
[1770962539604,0.51938818,78.485,78.463,0.48140722]
[1770962539902,0.1,78.49,78.471,0.48140722]
[1770962540406,0.1,78.49,78.463,0.48140722]
[1770962540407,0.51938818,78.488,78.463,0.48140722]
[1770962545301,0.51938818,78.469,78.392,0.48140722]
[1770962545615,0.51938818,78.469,78.431,0.48140722]
[1770962545616,0.51938818,78.459,78.431,0.48140722]
[1770962546713,0.51938818,78.459,78.441,0.48140722]
[1770962546890,0.51938818,78.469,78.441,0.48140722]
[1770962547491,0.51938818,78.468,78.442,0.48140722]
[1770962550505,0.48389266,78.466,78.442,0.48140722]
[1770962553712,0.48389266,78.459,78.43,4.28871337]
[1770962554015,0.48389266,78.459,78.431,0.48205003]
[1770962554216,0.48389266,78.459,78.432,0.51436327]
[1770962556305,0.48389266,78.459,78.427,54.4]
[1770962556306,0.48389266,78.459,78.441,0.51436327]
[1770962556621,0.50876308,78.468,78.441,0.51436327]
[1770962557902,0.50876308,78.468,78.442,0.51436327]
[1770962559628,0.50876308,78.468,78.444,0.51436327]
[1770962560127,0.50876308,78.481,78.451,0.51436327]
[1770962560321,0.50876308,78.481,78.461,0.51436327]
[1770962562018,0.1,78.49,78.463,0.51436327]
[1770962562222,0.1,78.49,78.471,0.51436327]
[1770962562718,0.60876308,78.49,78.471,0.51436327]
[1770962566008,0.60876308,78.49,78.467,0.51436327]
[1770962566009,0.50876308,78.489,78.467,0.51436327]
[1770962567913,0.50876308,78.489,78.469,0.51436327]
[1770962568417,0.50876308,78.489,78.471,0.51436327]
[1770962569126,0.1,78.49,78.471,0.51436327]
[1770962569426,0.1,78.5,78.481,0.51436327]
[1770962570126,0.1,78.5,78.481,12.74190648]
[1770962570328,0.1,78.5,78.482,0.51436327]
[1770962571924,0.60876308,78.51,78.491,0.51436327]
[1770962572231,0.50876308,78.509,78.486,0.51436327]
[1770962572620,0.1,78.51,78.491,0.51436327]
[1770962573115,0.50876308,78.559,78.501,0.21919622]
[1770962573331,0.50876308,78.559,78.53,4.28871337]
[1770962573710,0.50876308,78.549,78.524,0.21919622]
[1770962574033,0.50876308,78.549,78.52,4.28871337]
[1770962574532,0.50876308,78.548,78.52,4.28871337]
[1770962575725,4.28871337,78.56,78.53,4.28871337]
[1770962575928,0.50876308,78.554,78.53,4.5069749]
[1770962576816,0.50876308,78.554,78.53,4.28871337]
[1770962577934,0.50876308,78.554,78.531,12.73382485]
[1770962578522,0.50876308,78.554,78.532,0.21765615]
[1770962579534,0.50876308,78.554,78.531,12.73382485]
[1770962580125,0.50876308,78.549,78.521,67.15538764]
[1770962580325,0.50876308,78.549,78.521,12.73538764]
[1770962580536,0.50342762,78.539,78.514,54.42]
[1770962581022,0.50342762,78.539,78.502,0.21677392]
[1770962581328,0.50342762,78.529,78.501,12.73855055]
[1770962582136,0.50342762,78.529,78.51,4.28871337]
[1770962583228,4.28871337,78.55,78.521,0.49428602]
[1770962583428,12.73042061,78.552,78.521,0.49428602]
[1770962584526,12.72928626,78.559,78.523,0.49428602]
[1770962585136,0.50342762,78.558,78.523,0.49428602]
[1770962585533,0.50342762,78.558,78.51,4.28871337]
[1770962585534,0.50342762,78.558,78.531,0.49428602]
[1770962586832,0.50342762,78.558,78.53,4.28871337]
[1770962587134,0.50342762,78.558,78.53,4.27794107]
[1770962587342,0.50342762,78.558,78.531,0.49428602]
[1770962588034,0.50342762,78.558,78.533,0.49428602]
[1770962588236,0.50342762,78.565,78.541,0.49428602]
[1770962589324,0.50342762,78.565,78.54,4.27794107]
[1770962590139,0.50342762,78.549,78.52,4.27794107]
[1770962590330,0.50342762,78.549,78.52,4.77222709]
[1770962590532,0.50342762,78.549,78.521,0.49428602]
[1770962590833,0.50342762,78.549,78.53,4.27794107]
[1770962591623,0.50342762,78.549,78.523,12.73499431]
[1770962592429,0.50342762,78.539,78.515,12.73639152]
[1770962594044,0.50342762,78.539,78.52,4.27794107]
[1770962594723,41.98,78.565,78.53,4.27794107]
[1770962594724,0.50342762,78.556,78.53,4.27794107]
[1770962595130,0.50342762,78.556,78.529,0.49428602]
[1770962597349,0.50342762,78.554,78.529,0.49428602]
[1770962597553,0.50342762,78.549,78.517,0.49428602]
[1770962597850,0.50342762,78.539,78.516,54.44]
[1770962600447,0.50342762,78.539,78.518,0.49428602]
[1770962602351,0.50342762,78.549,78.521,0.49428602]
[1770962603438,0.50342762,78.549,78.523,0.49428602]
[1770962605358,0.50342762,78.549,78.525,0.49428602]
[1770962606957,0.50342762,78.549,78.526,12.73463566]
[1770962612165,0.50342762,78.549,78.526,0.50724026]
[1770962613962,73.8007952,78.565,78.516,54.5]
[1770962613963,0.46409713,78.539,78.516,54.5]
[1770962614263,0.46409713,78.539,78.505,0.50484176]
[1770962614443,0.46409713,78.539,78.445,50.99063998]
[1770962614444,0.46409713,78.539,78.501,54.56]
[1770962614764,0.46409713,78.539,78.502,0.50484176]
[1770962615754,4.27794107,78.52,78.492,13.24498048]
[1770962615960,0.46409713,78.519,78.492,13.24498048]
[1770962617350,0.46409713,78.518,78.492,13.24498048]
[1770962617665,0.46409713,78.509,78.488,12.74078438]
[1770962618452,0.46409713,78.509,78.483,12.74157401]
[1770962618651,0.46409713,78.499,78.473,54.6]
[1770962619141,0.46409713,78.499,78.477,12.74244779]
[1770962621558,0.46409713,78.499,78.471,0.50484176]
[1770962624161,0.46409713,78.499,78.472,12.74339891]
[1770962624363,4.27794107,78.51,78.4,13.0908368]
[1770962624364,0.46409713,78.489,78.461,12.7451855]
[1770962624549,0.46409713,78.489,78.462,0.50484176]
[1770962624754,0.46409713,78.489,78.471,0.50484176]
[1770962625852,0.46409713,78.489,78.465,0.50484176]
[1770962627558,0.46409713,78.489,78.467,0.50484176]
[1770962629463,0.46409713,78.497,78.471,0.50484176]
[1770962629650,0.46409713,78.497,78.47,4.27794107]
[1770962629651,0.46409713,78.497,78.473,0.50484176]
[1770962632373,0.46409713,78.497,78.474,12.74307413]
[1770962635269,0.46409713,78.489,78.465,0.50484176]
[1770962636074,0.46409713,78.498,78.465,0.50484176]
[1770962636964,0.46409713,78.496,78.467,0.50484176]
[1770962641180,0.46409713,78.496,78.469,0.45710307]
[1770962641554,0.47163129,78.494,78.469,0.45710307]
[1770962641766,12.73966494,78.495,78.468,12.74404852]
[1770962641767,0.47163129,78.489,78.468,12.74404852]
[1770962641973,0.47163129,78.479,78.441,13.20553819]
[1770962642281,12.73966494,78.495,78.441,13.20553819]
[1770962642282,0.47163129,78.469,78.442,0.45710307]
[1770962643362,0.47163129,78.459,78.438,12.74879563]
[1770962645290,0.47163129,78.459,78.426,31.87693274]
[1770962645291,0.47163129,78.459,78.434,0.45710307]
[1770962646064,4.27794107,78.46,78.434,0.45710307]
[1770962646557,0.47163129,78.459,78.434,0.45710307]
[1770962646884,0.47163129,78.459,78.436,0.45710307]
[1770962648189,0.47163129,78.459,78.437,13.20618832]
[1770962648480,0.47163129,78.459,78.438,0.45710307]
[1770962650268,4.75983435,78.47,78.441,0.45710307]
[1770962650468,0.47163129,78.469,78.441,0.45710307]
[1770962652182,0.47163129,78.469,78.443,0.45710307]
[1770962653213,0.47163129,78.476,78.45,4.28820306]
[1770962653392,0.47163129,78.489,78.461,0.45710307]
[1770962653607,0.47163129,78.488,78.461,0.45710307]
[1770962654480,0.47163129,78.479,78.461,0.45710307]
[1770962659482,0.47163129,78.489,78.463,0.45710307]
[1770962660475,0.47163129,78.489,78.465,0.45710307]
[1770962661983,0.47163129,78.489,78.466,12.74437335]
[1770962662183,0.47163129,78.489,78.467,0.45710307]
[1770962664495,0.47163129,78.494,78.471,0.45710307]
[1770962665089,0.47163129,78.509,78.481,0.45710307]
[1770962666592,0.47163129,78.509,78.483,0.45710307]
[1770962668215,0.47163129,78.509,78.485,0.45710307]
[1770962669181,0.47163129,78.509,78.491,0.45710307]
[1770962669697,0.47163129,78.509,78.486,0.45710307]
[1770962673398,0.49203501,78.507,78.484,12.74145048]
[1770962674806,0.49203501,78.507,78.484,13.19694186]
[1770962676908,0.49203501,78.507,78.479,0.45549138]
[1770962677404,0.45651775,78.499,78.479,0.45549138]
[1770962679597,0.45651775,78.499,78.48,13.19759127]
[1770962681510,0.45651775,78.487,78.451,12.74681011]
[1770962681804,0.45651775,78.479,78.452,0.45549138]
[1770962682610,0.45651775,78.489,78.471,0.45549138]
[1770962682790,46.40820306,78.5,78.471,0.45549138]
[1770962682791,0.45651775,78.499,78.471,0.45549138]
[1770962682994,0.45651775,78.489,78.451,12.74681011]
[1770962683228,0.45651775,78.489,78.452,0.45549138]
[1770962683707,0.45651775,78.487,78.454,0.45549138]
[1770962683906,4.28820306,78.48,78.454,0.45549138]
[1770962684112,0.45651775,78.479,78.454,0.45549138]
[1770962687993,0.45651775,78.479,78.455,12.74616021]
[1770962689011,0.45651775,78.479,78.455,0.45549138]
[1770962689506,0.45651775,78.479,78.46,4.28820306]
[1770962689705,0.45651775,78.489,78.461,0.45549138]
[1770962692214,0.45651775,78.489,78.463,0.45549138]
[1770962694012,0.45651775,78.489,78.462,12.74502306]
[1770962694904,0.45651775,78.489,78.462,13.20051444]
[1770962695306,0.45651775,78.479,78.454,12.74619256]
[1770962695506,0.45651775,78.479,78.455,0.45549138]
[1770962696506,0.45651775,78.479,78.456,13.20148913]
[1770962697025,0.45651775,78.479,78.457,0.45549138]
[1770962697607,0.45651775,78.479,78.458,12.74567284]
[1770962697808,0.45651775,78.479,78.458,13.20116422]
[1770962698408,0.45651775,78.479,78.458,12.74567284]
[1770962701825,0.45651775,78.479,78.454,13.21505165]
[1770962702326,0.45651775,78.479,78.455,0.46872897]
[1770962703330,63.68535438,78.511,78.454,12.74632268]
[1770962703331,4.75509657,78.49,78.46,4.28820306]
[1770962703629,0.46689351,78.489,78.461,0.46872897]
[1770962704215,0.46689351,78.489,78.462,12.74502306]
[1770962704411,0.46689351,78.479,78.456,0.46872897]
[1770962704631,0.46689351,78.479,78.451,12.74681011]
[1770962705229,0.46689351,78.479,78.452,0.46872897]
[1770962706717,0.46689351,78.489,78.461,0.46872897]
[1770962708241,0.46689351,78.489,78.463,0.46872897]
[1770962709339,0.46689351,78.489,78.462,12.74502306]
[1770962710647,0.46689351,78.489,78.462,13.21375203]
[1770962711255,0.46689351,78.489,78.463,0.46872897]
[1770962711545,0.46689351,78.489,78.465,0.46872897]
[1770962713550,0.46689351,78.489,78.466,13.21310232]
[1770962713743,0.46689351,78.487,78.466,0.46872897]
[1770962713949,4.28491286,78.48,78.451,12.74666747]
[1770962714243,0.46689351,78.479,78.451,12.74666747]
[1770962714448,0.46689351,78.479,78.452,0.46872897]
[1770962715130,0.46689351,78.479,78.454,0.46872897]
[1770962716150,0.46689351,78.493,78.461,0.46872897]
[1770962716333,0.46689351,78.5,78.471,0.46872897]
[1770962716653,0.46689351,78.509,78.481,0.46872897]
[1770962717545,0.46689351,78.508,78.481,0.46872897]
[1770962717745,13.20358016,78.514,78.491,0.46872897]
[1770962717951,0.46689351,78.519,78.501,0.46872897]
[1770962718133,0.1,78.54,78.511,0.46872897]
[1770962718329,0.46689351,78.539,78.511,0.46872897]
[1770962718530,0.46689351,78.539,78.51,4.28491286]
[1770962719539,17.11739627,78.54,78.51,4.28491286]
[1770962719540,12.7326899,78.538,78.51,4.28491286]
[1770962719853,0.46689351,78.537,78.51,4.28491286]
[1770962720046,0.46689351,78.537,78.502,12.73852854]
[1770962720344,12.7326899,78.538,78.5,4.28491286]
[1770962720345,0.46689351,78.529,78.5,4.28491286]
[1770962720536,0.46689351,78.529,78.501,0.46872897]
[1770962722244,0.46689351,78.529,78.503,0.46872897]
[1770962723154,0.46689351,78.527,78.497,0.46872897]